[Event "SVK ECo-C Extraliga 2018-19"]
[Site "Slovakia"]
[Date "2018.12.08"]
[Round "3"]
[White "Gazik, Igor"]
[Black "Mikrut, Dariusz"]
[Result "0-1"]
[ECO "B30"]
[WhiteElo "2220"]
[BlackElo "2372"]
[Annotator "NA"]
[PlyCount "62"]
[EventDate "2018.11.10"]
[EventType "team-tourn"]
[EventCountry "SVK"]
[SourceTitle "playchess.com"]
[Source "ChessBase"]
[SourceQuality "1"]
[WhiteTeam "Podhajska"]
[BlackTeam "Prakovce"]
[TimeControl "40/5400+30:1800+30"]

1. e4 {[%emt 0:00:00]} c5 {[%emt 0:00:00]} 2. Nf3 {[%emt 0:02:00]} Nc6 {[%emt 0:00:37]} 3. Nc3 {[%emt 0:01:12]} g6 {[%emt 0:00:21]} 4. g3 {[%emt 0:05:22]} Bg7 {[%emt 0:00:07]} 5. Bg2 {[%emt 0:00:23]} d6 {[%emt 0:00:17]} 6. d3 {[%emt 0:00:30]} Nf6 {[%emt 0:00:48]} 7. Be3 {[%emt 0:00:29]} O-O {[%emt 0:00:56]} 8. h3 {[%emt 0:00:04]} Nd7 {[%emt 0:02:46]} 9. Qd2 {[%emt 0:01:13]} Nd4 {[%emt 0:00:12]} 10. Nd1 {[%emt 0:02:56]} b6 {[%emt 0:03:35]} 11. Nh2 {[%emt 0:12:05]} e5 {[%emt 0:05:23]} 12. c3 {[%emt 0:17:45]} Ne6 {[%emt 0:00:31]} 13. f4 {[%emt 0:03:58]} exf4 {[%emt 0:08:39]} 14. gxf4 {[%emt 0:02:11]} Bb7 {[%emt 0:02:48]} 15. f5 {[%emt 0:06:33]} Nc7 {[%emt 0:01:02]} 16. O-O {[%emt 0:00:20]} d5 {[%emt 0:06:01]} 17. Ng4 {[%emt 0:07:13]} h5 {[%emt 0:02:39]} 18. Bg5 {[%emt 0:07:31]} Qe8 {[%emt 0:19:25]} 19. f6 {[%emt 0:07:53]} Bh8 {[%emt 0:00:27]} 20. Nge3 {[%emt 0:06:49]} dxe4 {[%emt 0:02:14]} 21. Nf2 {[%emt 0:03:40]} Nxf6 {[%emt 0:06:53]} 22. Bxf6 {[%emt 0:05:29]} Bxf6 {[%emt 0:00:07]} 23. Nxe4 {[%emt 0:00:05]} Bxe4 {[%emt 0:00:16]} 24. Bxe4 {[%emt 0:00:24]} Bg5 {[%emt 0:00:09]} 25. Rae1 {[%emt 0:00:03]} Rd8 {[%emt 0:08:37]} 26. Qg2 {[%emt 0:00:07]} Bxe3+ {[%emt 0:01:39]} 27. Rxe3 {[%emt 0:00:06]} Qe7 {[%emt 0:02:26]} 28. Kh1 {[%emt 0:03:13]} Kh8 {[%emt 0:02:33]} 29. Ref3 {[%emt 0:01:14]} Rd6 {[%emt 0:01:41]} 30. Qd2 {[%emt 0:01:45]} Kg7 {[%emt 0:00:53]} 31. Rg1 {[%emt 0:01:21]} Qxe4 {[%emt 0:00:46]} 0-1

[Event "SVK ECo-C Extraliga 2018-19"]
[Site "Slovakia"]
[Date "2018.12.08"]
[Round "3"]
[White "Federic, Jozef"]
[Black "Takacs, Laszlo"]
[Result "1/2-1/2"]
[ECO "A46"]
[WhiteElo "2207"]
[BlackElo "2308"]
[Annotator "NA"]
[PlyCount "176"]
[EventDate "2018.11.10"]
[EventType "team-tourn"]
[EventCountry "SVK"]
[SourceTitle "playchess.com"]
[Source "ChessBase"]
[SourceQuality "1"]
[WhiteTeam "Modra"]
[BlackTeam "Streda"]
[TimeControl "40/5400+30:1800+30"]

1. d4 {[%emt 0:00:00]} Nf6 {[%emt 0:00:00]} 2. Nf3 {[%emt 0:00:20]} e6 {[%emt 0:00:00]} 3. e3 {[%emt 0:00:18]} d5 {[%emt 0:00:06]} 4. Be2 {[%emt 0:02:40]} Nbd7 {[%emt 0:08:26] D05: Colle System with ...e6} (4... c5 5. O-O Nc6 6. b3 cxd4 7. exd4 Be7 8. a3 O-O 9. Bd3 a6 10. Bb2 b5 11. Nbd2 b4 12. axb4 Nxb4 13. Be2 a5 14. c3 Nc6 15. Ba3 {½-½ (38) Burmakin,V (2508)-Lintchevski,D (2532) Kazan 2017}) 5. O-O {[%emt 0:00:49]} Bd6 {[%emt 0:01:34] LiveBook: 4 Games} 6. Nbd2 {[%emt 0:00:26]} e5 $146 {[%emt 0:03:28]} ({Predecessor:} 6... O-O 7. b3 e5 8. dxe5 Nxe5 9. Bb2 Qe7 10. c4 dxc4 11. Nxe5 Bxe5 12. Bxe5 Qxe5 13. Nxc4 {½-½ (24) Gregory,A (1973)-Howells,C (1850) Frome 2018}) 7. dxe5 {[%emt 0:03:48]} Nxe5 {[%emt 0:00:07]} 8. c4 {[%emt 0:01:52]} O-O {[%emt 0:05:47]} 9. cxd5 {[%emt 0:18:22]} Nxd5 {[%emt 0:00:40]} 10. Nxe5 {[%emt 0:01:24]} Bxe5 {[%emt 0:00:07]} 11. Nc4 {[%emt 0:00:56]} Bf6 {[%emt 0:01:45]} 12. e4 {[%emt 0:01:42]} Nb6 {[%emt 0:01:57]} 13. e5 {[%emt 0:02:10]} Qxd1 {[%emt 0:02:35]} 14. Rxd1 {[%emt 0:00:09]} Be7 {[%emt 0:00:17]} 15. Nxb6 {[%emt 0:02:47]} axb6 {[%emt 0:00:24]} 16. Be3 {[%emt 0:00:22]} Ra5 {[%emt 0:08:59]} 17. f4 {[%emt 0:02:02]} Be6 {[%emt 0:03:10]} 18. a3 {[%emt 0:00:29]} Bc5 {[%emt 0:02:14]} 19. Bxc5 {[%emt 0:08:30]} Rxc5 {[%emt 0:00:33]} 20. Rd2 {[%emt 0:00:30]} g5 {[%emt 0:06:29]} 21. g3 {[%emt 0:05:00]} gxf4 {[%emt 0:01:08]} 22. gxf4 {[%emt 0:00:02]} f6 {[%emt 0:01:19]} 23. exf6 {[%emt 0:00:19]} Rxf6 {[%emt 0:00:27]} 24. Rf1 {[%emt 0:00:16]} Kf7 {[%emt 0:25:38]} 25. Bd3 {[%emt 0:06:12]} Bc4 {[%emt 0:04:59]} 26. Bxc4+ {[%emt 0:03:56]} Rxc4 {[%emt 0:00:06]} 27. Kg2 {[%emt 0:01:39]} Kg6 {[%emt 0:02:11]} 28. Kg3 {[%emt 0:00:20]} b5 {[%emt 0:02:03]} 29. Rf3 {[%emt 0:03:32]} b4 {[%emt 0:08:21]} 30. b3 {[%emt 0:01:35]} Re4 {[%emt 0:00:05]} 31. a4 {[%emt 0:00:23]} Rc6 {[%emt 0:03:54]} 32. Rd5 {[%emt 0:08:09]} Rc2 {[%emt 0:01:55]} 33. Rb5 {[%emt 0:06:23]} b6 {[%emt 0:00:39]} 34. Rg5+ {[%emt 0:05:05]} Kf6 {[%emt 0:00:40]} 35. Rh5 {[%emt 0:00:27]} Re7 {[%emt 0:00:56]} 36. f5 {[%emt 0:02:42]} Rc3 {[%emt 0:01:39]} 37. Kf4 {[%emt 0:04:11]} Rd7 {[%emt 0:01:43]} 38. Rxc3 {[%emt 0:01:41]} bxc3 {[%emt 0:00:15]} 39. Rh6+ {[%emt 0:00:04]} Kg7 {[%emt 0:00:10]} 40. Rc6 {[%emt 0:00:10]} h6 {[%emt 0:02:37]} 41. Rxc3 {[%emt 0:30:16]} c5 {[%emt 0:07:48]} 42. Rg3+ {[%emt 0:00:00]} Kf7 {[%emt 0:00:13]} 43. Rg6 {[%emt 0:00:00]} Rd4+ {[%emt 0:00:13]} 44. Ke5 {[%emt 0:00:00]} Rb4 {[%emt 0:00:08]} 45. Rxh6 {[%emt 0:00:00]} Rxb3 {[%emt 0:00:06]} 46. Rh7+ {[%emt 0:00:00]} Kg8 {[%emt 0:00:09]} 47. Rb7 {[%emt 0:00:00]} Rb4 {[%emt 0:02:38]} 48. Kf6 {[%emt 0:00:00]} Rxa4 {[%emt 0:00:09]} 49. Rb8+ {[%emt 0:00:00]} Kh7 {[%emt 0:00:06]} 50. Rxb6 {[%emt 0:00:00]} Rh4 {[%emt 0:01:32]} 51. Ke7 {[%emt 0:00:00]} c4 {[%emt 0:01:23]} 52. Rc6 {[%emt 0:00:28]} Re4+ {[%emt 0:05:41]} 53. Kf7 {[%emt 0:00:26]} Rf4 {[%emt 0:00:25]} 54. f6 {[%emt 0:01:01]} Kh6 {[%emt 0:04:16]} 55. h3 {[%emt 0:01:26]} Kh7 {[%emt 0:00:11]} 56. Kf8 {[%emt 0:03:51]} c3 {[%emt 0:00:21]} 57. f7 {[%emt 0:00:12]} Rf3 {[%emt 0:00:15]} 58. h4 {[%emt 0:00:15]} Re3 {[%emt 0:00:21]} 59. Rc5 {[%emt 0:00:25]} Rf3 {[%emt 0:01:08]} 60. Rh5+ {[%emt 0:03:12]} Kg6 {[%emt 0:00:01]} 61. Rg5+ {[%emt 0:00:10]} Kh7 {[%emt 0:01:32]} 62. Rg7+ {[%emt 0:00:15]} Kh8 {[%emt 0:01:16]} 63. Rg2 {[%emt 0:00:33]} Re3 {[%emt 0:08:04]} 64. h5 {[%emt 0:00:12]} Re4 {[%emt 0:00:39]} 65. Rg6 {[%emt 0:00:51]} Kh7 {[%emt 0:00:14]} 66. Rc6 {[%emt 0:00:06]} Re3 {[%emt 0:00:08]} 67. Rc7 {[%emt 0:00:36]} Kh8 {[%emt 0:00:38]} 68. Re7 {[%emt 0:01:01]} c2 {[%emt 0:00:22]} 69. Rc7 {[%emt 0:02:42]} Re2 {[%emt 0:00:18]} 70. Rc3 {[%emt 0:00:26]} Kh7 {[%emt 0:00:59]} 71. Rc6 {[%emt 0:00:41]} Rf2 {[%emt 0:00:47]} 72. h6 {[%emt 0:01:56]} Re2 {[%emt 0:00:32]} 73. Rc3 {[%emt 0:00:24]} Rf2 {[%emt 0:00:34]} 74. Rc6 {[%emt 0:00:36]} Re2 {[%emt 0:00:17]} 75. Rc7 {[%emt 0:00:07]} Kh8 {[%emt 0:01:14]} 76. h7 {[%emt 0:00:58]} Kxh7 {[%emt 0:00:41]} 77. Rc3 {[%emt 0:01:21]} Rf2 {[%emt 0:00:59]} 78. Rh3+ {[%emt 0:00:10]} Kg6 {[%emt 0:00:10]} 79. Rg3+ {[%emt 0:00:05]} Kf5 {[%emt 0:02:45]} 80. Kg8 {[%emt 0:01:48]} Ke4 {[%emt 0:00:38]} 81. Rc3 {[%emt 0:00:21]} Rg2+ {[%emt 0:00:06]} 82. Kh7 {[%emt 0:00:15]} Rh2+ {[%emt 0:00:17]} 83. Kg7 {[%emt 0:00:10]} Rg2+ {[%emt 0:00:21]} 84. Kf6 {[%emt 0:01:25]} Kd4 {[%emt 0:00:27]} 85. Rxc2 {[%emt 0:00:49]} Rxc2 {[%emt 0:00:07]} 86. f8=Q {[%emt 0:00:04]} Rf2+ {[%emt 0:00:06]} 87. Ke7 {[%emt 0:00:04]} Rxf8 {[%emt 0:00:07]} 88. Kxf8 Ke5 1/2-1/2

[Event "SVK ECo-C Extraliga 2018-19"]
[Site "Slovakia"]
[Date "2018.12.08"]
[Round "3"]
[White "Gasa, Patrik"]
[Black "Jancovic, Peter"]
[Result "1/2-1/2"]
[ECO "E16"]
[WhiteElo "2177"]
[BlackElo "2299"]
[Annotator "NA"]
[PlyCount "90"]
[EventDate "2018.11.10"]
[EventType "team-tourn"]
[EventCountry "SVK"]
[SourceTitle "playchess.com"]
[Source "ChessBase"]
[SourceQuality "1"]
[WhiteTeam "Osuske"]
[BlackTeam "Slovan"]
[TimeControl "40/5400+30:1800+30"]

1. d4 {[%emt 0:00:00]} Nf6 {[%emt 0:00:00]} 2. c4 {[%emt 0:00:00]} e6 {[%emt 0:00:00]} 3. Nf3 {[%emt 0:00:00]} b6 {[%emt 0:00:16]} 4. g3 {[%emt 0:00:00]} Bb7 {[%emt 0:00:11]} 5. Bg2 {[%emt 0:00:00]} Bb4+ {[%emt 0:01:43]} 6. Bd2 {[%emt 0:00:00]} Be7 {[%emt 0:02:08]} 7. O-O {[%emt 0:00:00]} O-O {[%emt 0:00:09]} 8. Nc3 {[%emt 0:00:00]} c5 {[%emt 0:01:11]} 9. d5 {[%emt 0:07:54]} exd5 {[%emt 0:01:05] LiveBook: 13 Games} 10. Ne5 {[%emt 0:04:25]} (10. Nh4 $14) 10... Nc6 {[%emt 0:17:45]} (10... Qc7 $15 11. cxd5 Qxe5) 11. Nxd5 {[%emt 0:01:11]} Nxd5 $11 {[%emt 0:32:55]} 12. Bxd5 {[%emt 0:00:21]} Qc7 {[%emt 0:00:02]} 13. Nf3 {[%emt 0:04:22]} Bf6 {[%emt 0:03:01]} 14. Bf4 {[%emt 0:01:51]} Qc8 {[%emt 0:01:26]} 15. Qd2 {[%emt 0:23:02]} Nd4 {[%emt 0:05:05]} 16. Bxb7 {[%emt 0:01:27]} Qxb7 {[%emt 0:00:10]} 17. Nxd4 {[%emt 0:00:04]} Bxd4 {[%emt 0:00:14]} 18. e3 {[%emt 0:01:07]} Bf6 {[%emt 0:00:09]} 19. Rad1 {[%emt 0:00:31]} d5 {[%emt 0:07:06]} 20. Qxd5 {[%emt 0:10:33]} Qa6 {[%emt 0:01:02]} 21. e4 {[%emt 0:13:42]} Rad8 {[%emt 0:04:17]} 22. Qf5 {[%emt 0:01:36]} Bxb2 {[%emt 0:05:41]} 23. Bd6 {[%emt 0:08:35]} Rfe8 {[%emt 0:00:20]} 24. Be7 {[%emt 0:02:39]} g6 {[%emt 0:04:05]} 25. Rxd8 {[%emt 0:02:56]} Rxd8 {[%emt 0:00:05]} 26. Qg4 {[%emt 0:01:02]} Rd3 {[%emt 0:01:29]} 27. Qe2 {[%emt 0:04:31]} Qa3 {[%emt 0:00:08]} 28. Qg4 {[%emt 0:02:35]} h5 {[%emt 0:03:39]} 29. Qc8+ {[%emt 0:08:44]} Kh7 {[%emt 0:00:05]} 30. Qe8 {[%emt 0:00:03]} Rf3 {[%emt 0:00:10]} 31. Kg2 {[%emt 0:00:41]} Qd3 {[%emt 0:03:24]} 32. Bg5 {[%emt 0:00:41]} Bg7 {[%emt 0:00:54]} 33. Bf4 {[%emt 0:01:21]} Qe2 {[%emt 0:01:10]} 34. h4 {[%emt 0:00:35]} Rc3 {[%emt 0:01:11]} 35. Qxf7 {[%emt 0:00:20]} Qxe4+ {[%emt 0:00:08]} 36. f3 {[%emt 0:00:33]} Qxc4 {[%emt 0:00:20]} 37. Qxa7 {[%emt 0:00:07]} Rc2+ {[%emt 0:00:50]} 38. Rf2 {[%emt 0:00:00]} Rxf2+ {[%emt 0:00:07]} 39. Kxf2 {[%emt 0:00:02]} Qd4+ {[%emt 0:01:40]} 40. Be3 {[%emt 0:01:56]} Qb2+ {[%emt 0:00:15]} 41. Kf1 {[%emt 0:30:29]} Qb1+ {[%emt 0:15:57]} 42. Kf2 {[%emt 0:00:00]} c4 {[%emt 0:00:45]} 43. Bd4 {[%emt 0:00:00]} Qc2+ {[%emt 0:02:22]} 44. Ke1 {[%emt 0:00:00]} Qb1+ {[%emt 0:00:24]} 45. Kf2 {[%emt 0:00:00]} Qc2+ {[%emt 0:01:01]} 1/2-1/2

[Event "SVK ECo-C Extraliga 2018-19"]
[Site "Slovakia"]
[Date "2018.12.08"]
[Round "3"]
[White "Kopera, Michal"]
[Black "Kantorik, Marian"]
[Result "0-1"]
[ECO "B07"]
[WhiteElo "2152"]
[BlackElo "2223"]
[Annotator "NA"]
[PlyCount "100"]
[EventDate "2018.11.10"]
[EventType "team-tourn"]
[EventCountry "SVK"]
[SourceTitle "playchess.com"]
[Source "ChessBase"]
[SourceQuality "1"]
[WhiteTeam "Zilina"]
[BlackTeam "Dunajov"]
[TimeControl "40/5400+30:1800+30"]

1. e4 {[%emt 0:00:00]} d6 {[%emt 0:00:00]} 2. d4 {[%emt 0:00:00]} Nf6 {[%emt 0:00:00]} 3. Nc3 {[%emt 0:00:00]} e5 {[%emt 0:00:00]} 4. dxe5 {[%emt 0:02:33]} dxe5 {[%emt 0:00:02]} 5. Qxd8+ Kxd8 {[%emt 0:00:04]} 6. Nf3 {[%emt 0:02:21]} Nbd7 {[%emt 0:00:58]} 7. Bc4 {[%emt 0:04:21]} Bb4 {[%emt 0:02:08]} 8. Bd2 {[%emt 0:13:39]} Rf8 $14 {[%emt 0:16:51]} 9. O-O {[%emt 0:06:37]} Bxc3 {[%emt 0:13:06]} 10. Bxc3 {[%emt 0:00:26]} Nxe4 {[%emt 0:00:08]} 11. Bxe5 {[%emt 0:03:20]} Nxe5 {[%emt 0:00:30]} 12. Nxe5 {[%emt 0:00:30]} Nd6 {[%emt 0:00:30]} 13. Rad1 {[%emt 0:00:30]} Be6 {[%emt 0:00:30]} 14. Bxe6 {[%emt 0:00:30]} fxe6 {[%emt 0:04:11]} 15. c4 {[%emt 0:17:21]} Ke7 {[%emt 0:16:06]} 16. c5 {[%emt 0:02:58]} Nf7 {[%emt 0:00:30]} 17. Rfe1 {[%emt 0:20:08]} Nxe5 {[%emt 0:02:00]} 18. Rxe5 {[%emt 0:00:03]} Rad8 {[%emt 0:00:44]} 19. Rde1 {[%emt 0:00:50]} Rf6 {[%emt 0:00:18]} 20. b4 {[%emt 0:03:01]} Rd2 {[%emt 0:01:38]} 21. a3 {[%emt 0:00:30]} Rdxf2 {[%emt 0:06:20]} 22. Rxe6+ Rxe6 {[%emt 0:00:23]} 23. Kxf2 {[%emt 0:04:47]} Rxe1 24. Kxe1 {[%emt 0:00:03]} Ke6 {[%emt 0:00:26]} 25. Ke2 {[%emt 0:00:06]} Kd5 {[%emt 0:00:17]} 26. Kd3 {[%emt 0:00:33]} a5 {[%emt 0:00:47]} 27. Kc3 {[%emt 0:03:06]} g6 {[%emt 0:08:07]} 28. Kb3 {[%emt 0:03:00]} g5 {[%emt 0:03:35]} 29. g4 {[%emt 0:04:01]} axb4 {[%emt 0:09:36]} 30. axb4 {[%emt 0:00:38]} Kd4 {[%emt 0:01:53]} 31. Ka4 {[%emt 0:01:36]} Kc4 {[%emt 0:00:56]} 32. Ka3 {[%emt 0:03:57]} Kd5 {[%emt 0:08:03]} 33. Ka4 {[%emt 0:00:38]} Ke4 {[%emt 0:01:48]} 34. Kb5 {[%emt 0:00:44]} Kd5 {[%emt 0:00:15]} 35. Ka4 {[%emt 0:00:24]} Kc4 {[%emt 0:01:25]} 36. Ka3 {[%emt 0:00:07]} c6 {[%emt 0:00:20]} 37. Ka4 {[%emt 0:00:11]} Kc3 {[%emt 0:00:27]} 38. Ka3 {[%emt 0:00:29]} Kc2 {[%emt 0:00:49]} 39. Ka2 {[%emt 0:01:14]} Kc3 {[%emt 0:01:02]} 40. Ka3 {[%emt 0:00:03]} Kc2 {[%emt 0:00:07]} 41. Ka2 {[%emt 0:31:28]} h6 {[%emt 0:32:03]} 42. h3 {[%emt 0:01:07]} Kd3 {[%emt 0:00:00]} 43. Kb3 {[%emt 0:00:00]} Kd4 {[%emt 0:00:00]} 44. Ka4 {[%emt 0:00:00]} Kc4 {[%emt 0:00:00]} 45. Ka3 {[%emt 0:00:00]} Kc3 {[%emt 0:00:00]} 46. Ka4 {[%emt 0:00:00]} Kb2 {[%emt 0:00:00]} 47. b5 {[%emt 0:00:00]} Kc3 {[%emt 0:00:00]} 48. Ka5 {[%emt 0:00:00]} Kc4 {[%emt 0:00:00]} 49. bxc6 bxc6 {[%emt 0:00:00]} 50. Kb6 Kd5 {[%emt 0:00:00]} 0-1

[Event "SVK ECo-C Extraliga 2018-19"]
[Site "Slovakia"]
[Date "2018.12.08"]
[Round "3"]
[White "Szegi, Tamas"]
[Black "Pcola, Pavol"]
[Result "0-1"]
[ECO "C02"]
[WhiteElo "2151"]
[BlackElo "2381"]
[Annotator "NA"]
[PlyCount "68"]
[EventDate "2018.11.10"]
[EventType "team-tourn"]
[EventCountry "SVK"]
[SourceTitle "playchess.com"]
[Source "ChessBase"]
[SourceQuality "1"]
[WhiteTeam "Komarno"]
[BlackTeam "Snina"]
[TimeControl "40/5400+30:1800+30"]

1. e4 e6 2. d4 d5 3. e5 c5 4. c3 Nc6 5. Nf3 Qb6 6. Bd3 cxd4 7. cxd4 Bd7 8. O-O Nxd4 9. Nxd4 Qxd4 10. Nc3 a6 11. Kh1 Ne7 12. f4 Nc6 13. a3 g6 {[%emt 0:14:08]} 14. Rf3 {[%emt 0:38:31]} Qa7 {[%emt 0:03:42]} 15. b4 {[%emt 0:08:58]} b5 {[%emt 0:10:08]} 16. Be3 {[%emt 0:09:36]} Qb7 {[%emt 0:00:19]} 17. Bf2 {[%emt 0:04:45]} Be7 {[%emt 0:01:43]} 18. Qe1 {[%emt 0:11:36]} Rc8 {[%emt 0:04:14]} 19. Rd1 {[%emt 0:04:07]} O-O {[%emt 0:15:45]} 20. f5 {[%emt 0:06:47]} gxf5 {[%emt 0:03:10]} 21. Bc5 {[%emt 0:03:08]} Bxc5 {[%emt 0:03:05]} 22. bxc5 {[%emt 0:05:22]} f6 {[%emt 0:00:39]} 23. Nxd5 {[%emt 0:03:35]} exd5 {[%emt 0:01:35]} 24. e6 {[%emt 0:00:05]} Be8 {[%emt 0:00:47]} 25. Bxf5 {[%emt 0:00:30]} Rc7 {[%emt 0:00:57]} 26. Rxd5 {[%emt 0:01:50]} Rg7 {[%emt 0:02:37]} 27. Rfd3 {[%emt 0:03:19]} Ne7 {[%emt 0:00:44]} 28. Be4 {[%emt 0:00:23]} Nxd5 {[%emt 0:01:48]} 29. Bxd5 {[%emt 0:00:04]} Qe7 {[%emt 0:01:00]} 30. c6 {[%emt 0:00:05]} Kh8 {[%emt 0:00:58]} 31. Bf3 {[%emt 0:00:40]} Bf7 {[%emt 0:02:35]} 32. c7 {[%emt 0:01:29]} Qxe6 {[%emt 0:05:10]} 33. Qb4 {[%emt 0:00:07]} Rc8 {[%emt 0:00:36]} 34. Rd8+ {[%emt 0:01:07]} Rg8 {[%emt 0:00:46]} 0-1

[Event "SVK ECo-C Extraliga 2018-19"]
[Site "Slovakia"]
[Date "2018.12.08"]
[Round "3"]
[White "Pcola, Jaroslav"]
[Black "Kukel, Imre"]
[Result "0-1"]
[ECO "B51"]
[WhiteElo "2102"]
[BlackElo "2273"]
[Annotator "NA"]
[PlyCount "79"]
[EventDate "2018.11.10"]
[EventType "team-tourn"]
[EventCountry "SVK"]
[SourceTitle "playchess.com"]
[Source "ChessBase"]
[SourceQuality "1"]
[WhiteTeam "Snina"]
[BlackTeam "Komarno"]
[TimeControl "40/5400+30:1800+30"]

1. e4 c5 2. Nf3 d6 3. Bb5+ Nd7 4. c3 Ngf6 5. Qe2 Qc7 6. O-O h6 7. d4 e5 8. Nbd2 {[%emt 0:21:01]} Be7 {[%emt 0:30:37]} 9. Rd1 $14 {[%emt 0:11:48]} g5 {[%emt 0:10:43]} 10. dxe5 {[%emt 0:06:38]} dxe5 {[%emt 0:00:15]} 11. Nf1 {[%emt 0:08:25]} a6 {[%emt 0:09:33]} 12. Ba4 {[%emt 0:00:32]} b5 {[%emt 0:02:19]} 13. Bc2 {[%emt 0:00:27]} Nb6 {[%emt 0:01:22]} 14. Ng3 {[%emt 0:02:58]} Bd7 {[%emt 0:08:27]} 15. Nf5 {[%emt 0:03:19]} Bf8 {[%emt 0:01:00]} 16. b3 {[%emt 0:04:33]} Nh5 {[%emt 0:03:59]} 17. a4 {[%emt 0:08:38]} Nf4 {[%emt 0:02:33]} 18. Qf1 {[%emt 0:03:21]} Rg8 {[%emt 0:03:21]} 19. Be3 {[%emt 0:03:49]} Rg6 {[%emt 0:09:37]} 20. Rd2 {[%emt 0:10:09]} bxa4 {[%emt 0:03:21]} 21. bxa4 {[%emt 0:01:57]} Be6 {[%emt 0:00:11]} 22. Bd3 {[%emt 0:01:58]} Nxd3 {[%emt 0:01:53]} 23. Qxd3 {[%emt 0:00:07]} Nc4 {[%emt 0:00:23]} 24. Re2 {[%emt 0:02:06]} Na5 {[%emt 0:05:11]} 25. Rb2 {[%emt 0:04:11]} Bc4 {[%emt 0:01:07]} 26. Qc2 {[%emt 0:00:43]} Rd8 {[%emt 0:00:27]} 27. Rd1 {[%emt 0:02:49]} Nc6 {[%emt 0:01:13]} 28. Bc1 {[%emt 0:00:56]} Rxd1+ {[%emt 0:02:35]} 29. Qxd1 {[%emt 0:00:02]} Nd8 {[%emt 0:00:11]} 30. Ne3 {[%emt 0:00:13]} Be6 {[%emt 0:00:41]} 31. Nd5 {[%emt 0:00:35]} Bxd5 {[%emt 0:01:04]} 32. Qxd5 {[%emt 0:00:05]} Rd6 {[%emt 0:00:25]} 33. Qxe5+ {[%emt 0:00:48]} Ne6 {[%emt 0:00:00]} 34. Rd2 {[%emt 0:00:51]} Qb6 {[%emt 0:02:05]} 35. h3 {[%emt 0:03:48]} Kd7 {[%emt 0:01:16]} 36. Rxd6+ {[%emt 0:00:16]} Bxd6 {[%emt 0:00:01]} 37. Qd5 {[%emt 0:00:26]} Qb1 {[%emt 0:00:13]} 38. Qd2 {[%emt 0:00:56]} Nf4 {[%emt 0:00:13]} 39. Ne1 {[%emt 0:00:34]} Qxc1 {[%emt 0:00:10]} 40. Qxc1 {[%emt 0:00:24]} 0-1

[Event "SVK ECo-C Extraliga 2018-19"]
[Site "Slovakia"]
[Date "2018.12.09"]
[Round "4"]
[White "Kriebel, Tadeas"]
[Black "Horvath, Csaba"]
[Result "1-0"]
[ECO "B04"]
[WhiteElo "2517"]
[BlackElo "2510"]
[Annotator "ChessBase"]
[PlyCount "113"]
[EventDate "2018.11.10"]
[EventType "team-tourn"]
[EventCountry "SVK"]
[SourceTitle "playchess.com"]
[Source "ChessBase"]
[SourceQuality "1"]
[WhiteTeam "Snina"]
[BlackTeam "Podhajska"]
[TimeControl "40/5400+30:1800+30"]

1. e4 {[%emt 0:00:00]} Nf6 {[%emt 0:00:00]} 2. e5 {[%emt 0:00:00]} Nd5 {[%emt 0:00:00]} 3. d4 {[%emt 0:00:00]} d6 {[%emt 0:00:00]} 4. Nf3 {[%emt 0:00:05]} dxe5 {[%emt 0:00:00]} 5. Nxe5 {[%emt 0:00:08]} c6 {[%emt 0:00:00]} 6. c4 {[%emt 0:02:15]} Nb4 {[%emt 0:01:01]} 7. Be3 {[%emt 0:02:55]} Bf5 {[%emt 0:00:15]} 8. Na3 {[%emt 0:06:34]} Nd7 {[%emt 0:02:21]} 9. Nxd7 {[%emt 0:01:43]} Qxd7 {[%emt 0:00:27]} 10. Be2 {[%emt 0:00:17]} e6 {[%emt 0:08:35]} 11. O-O {[%emt 0:01:03]} Be7 {[%emt 0:00:21]} 12. Qb3 {[%emt 0:16:47]} O-O {[%emt 0:01:55]} 13. Rac1 {[%emt 0:00:06]} b6 {[%emt 0:17:17]} 14. Nb1 {[%emt 0:05:42]} c5 {[%emt 0:02:55]} 15. Rfd1 {[%emt 0:01:54]} cxd4 {[%emt 0:03:24]} 16. Bxd4 {[%emt 0:00:13]} Qc7 {[%emt 0:13:24]} 17. Nc3 {[%emt 0:06:41]} Bc5 {[%emt 0:12:56]} 18. Nb5 {[%emt 0:06:41]} Qe7 {[%emt 0:00:30]} 19. Bxc5 {[%emt 0:02:56]} bxc5 {[%emt 0:01:43]} 20. a3 {[%emt 0:00:49]} Nc6 {[%emt 0:00:51]} 21. Bf3 {[%emt 0:00:08]} Rac8 {[%emt 0:00:46]} 22. Qe3 {[%emt 0:03:40]} Na5 {[%emt 0:09:34]} 23. Nd6 {[%emt 0:01:16]} Rc7 {[%emt 0:00:03]} 24. b4 {[%emt 0:00:52]} cxb4 {[%emt 0:00:11]} 25. axb4 {[%emt 0:00:09]} Nxc4 {[%emt 0:00:56]} 26. Rxc4 {[%emt 0:04:12]} Rxc4 {[%emt 0:00:49]} 27. Nxc4 {[%emt 0:00:05]} Qxb4 {[%emt 0:00:08]} 28. Ne5 {[%emt 0:00:13]} Qb6 {[%emt 0:04:48]} 29. Qxb6 {[%emt 0:02:34]} axb6 {[%emt 0:00:03]} 30. Nd7 {[%emt 0:00:08]} Re8 {[%emt 0:00:12]} 31. Nxb6 {[%emt 0:00:24]} g5 {[%emt 0:02:44]} 32. h3 {[%emt 0:03:59]} Kg7 {[%emt 0:00:18]} 33. Rd7 {[%emt 0:00:53]} e5 {[%emt 0:00:20]} 34. Rc7 {[%emt 0:01:04]} e4 {[%emt 0:00:40]} 35. Bh5 {[%emt 0:00:29]} Bg6 {[%emt 0:00:15]} 36. Bxg6 {[%emt 0:00:08]} hxg6 {[%emt 0:00:53]} 37. Nc4 {[%emt 0:00:03]} Re6 {[%emt 0:00:27]} 38. Kf1 {[%emt 0:00:34]} Kg8 {[%emt 0:02:16]} 39. Ke2 {[%emt 0:01:38]} f5 {[%emt 0:00:39]} 40. Ke3 {[%emt 0:00:05]} Ra6 {[%emt 0:00:16]} 41. Rd7 {[%emt 0:40:01]} Ra4 {[%emt 0:32:27]} 42. Ne5 {[%emt 0:02:08]} Ra3+ {[%emt 0:01:48]} 43. Ke2 {[%emt 0:00:11]} Ra2+ {[%emt 0:00:21]} 44. Rd2 {[%emt 0:00:12]} Ra5 {[%emt 0:04:29]} 45. Nc4 {[%emt 0:08:26]} Ra4 {[%emt 0:01:36]} 46. Rd4 {[%emt 0:03:48]} Ra2+ {[%emt 0:03:33]} 47. Ke3 {[%emt 0:00:40]} Kg7 {[%emt 0:04:13]} 48. Rd2 {[%emt 0:01:00]} Ra4 {[%emt 0:00:19]} 49. Rd7+ {[%emt 0:00:18]} Kh6 {[%emt 0:00:00]} 50. Rc7 {[%emt 0:00:00]} Ra2 {[%emt 0:00:00]} 51. Ne5 {[%emt 0:00:00]} Ra3+ {[%emt 0:00:00]} 52. Kd4 {[%emt 0:00:00]} Ra2 {[%emt 0:00:00]} 53. Nf7+ {[%emt 0:00:00]} Kg7 {[%emt 0:00:00]} 54. Nxg5+ {[%emt 0:00:00]} Kf6 {[%emt 0:00:00]} 55. h4 {[%emt 0:00:00]} Rd2+ {[%emt 0:00:00]} 56. Ke3 {[%emt 0:00:00]} Ra2 {[%emt 0:00:00]} 57. Rc6+ {[%emt 0:00:00]} 1-0

[Event "SVK ECo-C Extraliga 2018-19"]
[Site "Slovakia"]
[Date "2018.12.09"]
[Round "4"]
[White "Pcola, Pavol"]
[Black "Gazik, Igor"]
[Result "1/2-1/2"]
[ECO "A10"]
[WhiteElo "2381"]
[BlackElo "2220"]
[Annotator "NA"]
[PlyCount "24"]
[EventDate "2018.11.10"]
[EventType "team-tourn"]
[EventCountry "SVK"]
[SourceTitle "playchess.com"]
[Source "ChessBase"]
[SourceQuality "1"]
[WhiteTeam "Snina"]
[BlackTeam "Podhajska"]
[TimeControl "40/5400+30:1800+30"]

1. c4 {[%emt 0:00:00]} g6 {[%emt 0:00:01]} 2. g3 {[%emt 0:00:00]} Bg7 {[%emt 0:00:07]} 3. Bg2 {[%emt 0:00:00]} e5 {[%emt 0:00:34]} 4. Nc3 {[%emt 0:00:00]} d6 {[%emt 0:00:10]} 5. Nf3 {[%emt 0:00:15]} Nf6 {[%emt 0:05:45]} 6. O-O {[%emt 0:01:18]} O-O {[%emt 0:00:06]} 7. d4 {[%emt 0:04:47]} Nbd7 {[%emt 0:01:57]} 8. b3 {[%emt 0:00:48]} Re8 {[%emt 0:03:05]} 9. e3 {[%emt 0:08:10]} c6 {[%emt 0:00:54]} 10. dxe5 {[%emt 0:03:19]} dxe5 {[%emt 0:00:26]} 11. Bb2 {[%emt 0:00:47]} e4 {[%emt 0:15:44]} 12. Nd4 Nc5 1/2-1/2